bitfinex/quotes_BTCUSD_20250406
["timestamp","ask_amount","ask_price","bid_price","bid_amount"]
[1743982264412,0.271037,77480.0,77471.0,3.8e-07]
[1743982264413,0.611064,77472.0,77471.0,3.8e-07]
[1743982264590,0.611064,77472.0,77459.0,0.000334]
[1743982264591,0.258197,77460.0,77459.0,0.000334]
[1743982264787,0.258187,77463.0,77459.0,0.000334]
[1743982264788,0.258161,77471.0,77459.0,0.12985839]
[1743982264987,0.258192,77462.0,77460.0,0.1293887]
[1743982265200,0.271106,77460.0,77459.0,0.00046969]
[1743982265442,0.611106,77460.0,77459.0,0.00046969]
[1743982265648,0.673795,77461.0,77459.0,0.00046969]
[1743982266349,0.012909,77460.0,77459.0,0.00046969]
[1743982266554,0.01549826,77460.0,77459.0,0.00046969]
[1743982267113,0.01549826,77460.0,77459.0,0.00646969]
[1743982267318,0.00258926,77460.0,77459.0,0.00646969]
[1743982267538,0.673795,77461.0,77459.0,0.00646969]
[1743982267539,0.4156,77461.0,77459.0,0.00646969]
[1743982267744,0.4156,77469.0,77462.0,0.012909]
[1743982267956,0.25818,77466.0,77463.0,0.1293887]
[1743982268148,0.24818,77466.0,77463.0,0.1293887]
[1743982268348,0.4156,77469.0,77463.0,0.1293887]
[1743982268548,0.258177,77467.0,77464.0,0.04138694]
[1743982268774,0.258177,77467.0,77465.0,0.1293887]
[1743982268964,0.258197,77460.0,77459.0,0.23078969]
[1743982269191,0.001,77466.0,77459.0,0.36017839]
[1743982269496,0.4156,77469.0,77464.0,0.271092]
[1743982269639,0.4156,77469.0,77466.0,0.012908]
[1743982269834,0.4156,77482.0,77468.0,0.258171]
[1743982270035,0.4156,77488.0,77487.0,0.258107]
[1743982270261,0.4156,77499.0,77496.0,0.012903]
[1743982270437,0.012901,77509.0,77496.0,0.1422917]
[1743982270438,0.4156,77508.0,77496.0,0.1422917]
[1743982270641,0.258055,77503.0,77497.0,0.1293887]
[1743982270835,0.270971,77499.0,77498.0,0.01944747]
[1743982271041,0.270971,77499.0,77488.0,0.012905]
[1743982271042,0.258085,77494.0,77488.0,0.012905]
[1743982271283,0.258085,77494.0,77489.0,0.1293887]
[1743982271459,0.258057,77502.0,77490.0,0.012904]
[1743982271658,0.258035,77509.0,77503.0,0.012902]
[1743982271952,0.012901,77513.0,77491.0,0.1293887]
[1743982271953,0.258054,77503.0,77497.0,0.006]
[1743982272175,0.258054,77503.0,77498.0,0.1293887]
[1743982272377,0.00013579,77508.0,77501.0,0.258058]
[1743982272577,0.270959,77502.0,77501.0,0.1293887]
[1743982272759,0.271959,77502.0,77501.0,0.1293887]
[1743982272961,0.271959,77502.0,77490.0,0.006]
[1743982272962,0.270998,77491.0,77490.0,0.006]
[1743982273974,0.270998,77491.0,77469.0,0.22428]
[1743982273975,0.271061,77473.0,77469.0,0.22428]
[1743982274184,0.012908,77471.0,77470.0,0.1293887]
[1743982274447,0.012909,77460.0,77459.0,0.000334]
[1743982274568,0.258197,77460.0,77459.0,0.1297227]
[1743982274779,0.258188,77463.0,77459.0,0.1297227]
[1743982274976,0.012907,77476.0,77460.0,0.1422977]
[1743982275223,0.516132,77500.0,77469.0,0.258166]
[1743982275224,0.012905,77484.0,77469.0,0.258166]
[1743982275427,0.34,77503.0,77474.0,0.012907]
[1743982275428,0.258125,77482.0,77474.0,0.012907]
[1743982275603,0.012904,77493.0,77480.0,0.012906]
[1743982275804,0.012904,77493.0,77481.0,0.1293887]
[1743982276003,0.258081,77495.0,77482.0,0.012906]
[1743982276181,0.258117,77484.0,77483.0,0.15602811]
[1743982276604,0.4156,77502.0,77491.0,0.012904]
[1743982276810,0.258055,77503.0,77492.0,0.13196952]
[1743982277011,0.271991,77493.0,77492.0,0.1293887]
[1743982277310,0.001,77493.0,77492.0,0.1293887]
[1743982277514,0.013904,77493.0,77492.0,0.1293887]
[1743982278184,0.271001,77490.0,77489.0,0.2242]
[1743982278389,0.271001,77490.0,77489.0,0.3535887]
[1743982278595,0.271001,77490.0,77483.0,0.02663941]
[1743982278596,0.271022,77484.0,77483.0,0.02663941]
[1743982279077,0.272022,77484.0,77483.0,0.02963941]
[1743982279224,0.259117,77484.0,77483.0,0.02963941]
[1743982279434,0.271022,77484.0,77483.0,0.02663941]
[1743982279635,0.258117,77484.0,77483.0,0.15602811]
[1743982279835,0.258117,77484.0,77483.0,0.1293887]
[1743982280279,0.001,77490.0,77486.0,0.012905]
[1743982280580,0.001,77490.0,77487.0,0.3535487]
[1743982280784,0.258104,77488.0,77487.0,0.3535487]
[1743982280938,0.001,77490.0,77487.0,0.38890357]
[1743982281283,0.001,77490.0,77489.0,0.012905]
[1743982281525,0.001,77490.0,77489.0,0.1353887]
[1743982281882,0.258094,77491.0,77489.0,0.1293887]
[1743982282095,0.258077,77497.0,77490.0,0.1293887]
[1743982282296,0.258064,77500.0,77493.0,0.012904]
[1743982282555,0.258064,77500.0,77495.0,0.012904]
[1743982282766,0.258071,77498.0,77496.0,0.1293887]
[1743982282975,0.012903,77497.0,77496.0,0.1293887]
[1743982283375,0.270967,77500.0,77496.0,0.1293887]
[1743982283496,0.001,77497.0,77496.0,0.1293887]
[1743982283697,0.013903,77497.0,77496.0,0.1293887]
[1743982284394,0.001,77497.0,77496.0,0.1422917]
[1743982284595,0.001,77497.0,77496.0,0.53608067]
[1743982284797,0.002,77519.0,77518.0,0.610904]
[1743982285004,0.002,77519.0,77518.0,1.00265207]
[1743982285344,0.00213581,77519.0,77518.0,1.02654593]
[1743982285549,0.00213581,77519.0,77518.0,1.04108678]
[1743982285999,0.00213581,77519.0,77518.0,1.05065738]
[1743982286201,0.00213581,77519.0,77518.0,1.0931592]
[1743982286553,0.00213581,77519.0,77518.0,0.47700375]
[1743982286723,0.00213581,77519.0,77518.0,0.47100375]
[1743982287361,0.26013681,77519.0,77518.0,0.42754894]
[1743982287542,0.27303681,77519.0,77518.0,0.38922957]
[1743982287673,0.27303681,77519.0,77518.0,0.01794701]
[1743982288109,0.00213581,77519.0,77518.0,0.14733571]
[1743982288352,0.26013681,77519.0,77518.0,0.14733571]
[1743982288558,0.00213581,77519.0,77518.0,0.17872489]
[1743982288733,0.27303681,77519.0,77518.0,0.18472489]
[1743982288932,0.27303681,77519.0,77518.0,0.16528256]
[1743982289562,0.27303681,77519.0,77518.0,0.15928256]
[1743982290176,0.27303681,77519.0,77518.0,0.16528256]
[1743982290435,1.02863681,77519.0,77518.0,0.02989386]
[1743982290917,1.02863681,77519.0,77518.0,0.012]
[1743982291358,0.270943,77507.0,77506.0,0.01194701]
[1743982291727,0.270943,77507.0,77492.0,0.02399888]
[1743982291728,0.270991,77493.0,77492.0,0.02399888]
[1743982291884,1.1559797,77493.0,77492.0,8.8e-07]
[1743982292082,1.2012797,77493.0,77492.0,8.8e-07]
[1743982292439,1.2012797,77493.0,77459.0,0.000334]
[1743982292440,0.271106,77460.0,77459.0,0.000334]
[1743982293119,0.258193,77462.0,77459.0,0.000334]
[1743982293349,0.012908,77468.0,77460.0,0.1293887]
[1743982293584,0.258188,77463.0,77461.0,0.04142236]
[1743982293816,0.258167,77469.0,77463.0,0.258187]
[1743982294054,0.258175,77467.0,77464.0,0.1293887]
[1743982294295,0.258167,77469.0,77464.0,0.1293887]
[1743982294520,0.70377646,77493.0,77476.0,0.012907]
[1743982294521,0.012904,77490.0,77476.0,0.012907]
[1743982294763,0.258148,77475.0,77468.0,0.012908]
[1743982294987,0.4156,77489.0,77482.0,0.012906]
[1743982295212,0.4156,77489.0,77488.0,0.258104]
[1743982295411,0.4156,77489.0,77488.0,0.42891506]
[1743982295638,0.4156,77489.0,77488.0,0.17081106]
[1743982295818,0.4156,77489.0,77488.0,0.44182006]
[1743982295955,0.4156,77489.0,77488.0,0.17081106]
[1743982296153,0.258162,77471.0,77466.0,0.0482]
[1743982296458,0.012908,77471.0,77470.0,0.1293887]
[1743982296662,0.012908,77469.0,77468.0,0.2238]
[1743982296863,0.012908,77469.0,77468.0,0.3591887]
[1743982297503,0.012908,77469.0,77468.0,0.3531887]
[1743982297711,0.012908,77469.0,77468.0,0.38852114]
[1743982298579,0.258157,77473.0,77468.0,0.38852114]
[1743982298580,0.4156,77493.0,77487.0,0.012905]
[1743982298784,0.270951,77505.0,77493.0,0.012904]
[1743982298955,0.012903,77501.0,77494.0,0.15996594]
[1743982299209,0.270985,77495.0,77494.0,0.15996594]
[1743982299522,0.270985,77495.0,77489.0,0.22376]
[1743982299733,0.012907,77476.0,77465.0,0.34]
[1743982299954,0.012907,77475.0,77468.0,0.012908]
[1743982300186,0.012907,77475.0,77469.0,0.1293887]
[1743982300325,0.012906,77481.0,77471.0,0.012908]
[1743982300527,0.258134,77479.0,77473.0,0.012907]
[1743982300739,0.258144,77476.0,77474.0,0.1293887]
[1743982300942,0.012907,77475.0,77474.0,0.1293887]
[1743982301167,0.012906,77481.0,77474.0,0.1293887]
[1743982301168,0.012905,77488.0,77478.0,0.012906]
[1743982301374,0.012905,77488.0,77479.0,0.3875227]
[1743982301375,0.258117,77484.0,77479.0,0.3875227]
[1743982301601,0.258124,77482.0,77479.0,0.1293887]
[1743982301859,0.012906,77480.0,77479.0,0.1293887]
[1743982302031,0.012906,77480.0,77474.0,0.00613569]
[1743982302202,0.271054,77475.0,77474.0,0.00013569]
[1743982302656,0.673734,77479.0,77476.0,0.012907]
[1743982302657,0.4156,77479.0,77476.0,0.012907]
[1743982302884,0.4156,77479.0,77478.0,0.012906]
[1743982303139,0.4156,77479.0,77478.0,0.1422947]
[1743982303629,0.012903,77496.0,77478.0,0.1422947]
[1743982303630,0.012902,77505.0,77497.0,0.012903]
[1743982303874,0.258065,77500.0,77498.0,0.1293887]
[1743982304117,0.012903,77499.0,77498.0,0.1293887]
[1743982304314,0.012903,77499.0,77498.0,0.02403352]
[1743982304579,0.271009,77488.0,77487.0,0.02403352]
[1743982305109,0.4156,77493.0,77491.0,0.258094]
[1743982305365,0.4156,77493.0,77492.0,0.20894953]
[1743982305850,0.4156,77493.0,77492.0,0.19604553]
[1743982306145,0.4156,77493.0,77492.0,0.20894953]
[1743982307523,0.4156,77493.0,77492.0,0.19604553]
[1743982307722,0.4156,77493.0,77492.0,0.20204553]
[1743982308333,0.4156,77493.0,77492.0,0.03603716]
[1743982308334,0.428504,77493.0,77492.0,0.03603716]
[1743982308532,0.012904,77491.0,77490.0,0.01201722]
[1743982308788,0.012908,77470.0,77463.0,0.01201722]
[1743982308992,0.012908,77470.0,77464.0,0.38227426]
[1743982309195,0.012907,77476.0,77466.0,0.258176]
[1743982309367,0.25815,77475.0,77469.0,0.271072]
[1743982309599,0.25815,77475.0,77465.0,0.012909]
[1743982309600,0.25816,77472.0,77470.0,0.1293887]
[1743982309755,0.012906,77479.0,77470.0,0.1293887]
[1743982309948,0.258159,77472.0,77471.0,0.01552057]
[1743982310136,0.258159,77472.0,77471.0,0.14490927]
[1743982310330,0.0732,77514.0,77471.0,0.14490927]
[1743982310530,0.258097,77491.0,77483.0,0.258119]
[1743982310801,0.258097,77491.0,77484.0,0.1293887]
[1743982310802,0.271019,77485.0,77484.0,0.1293887]
[1743982310935,0.271019,77485.0,77484.0,0.15045225]
[1743982311890,0.258086,77494.0,77485.0,0.258114]
[1743982312137,0.4156,77513.0,77505.0,0.012902]
[1743982312421,0.4156,77513.0,77486.0,0.00258102]
[1743982312422,0.4156,77517.0,77513.0,0.012901]
[1743982312718,0.012902,77503.0,77493.0,0.258087]
[1743982313018,0.258047,77505.0,77497.0,0.012903]
[1743982313161,0.258047,77505.0,77500.0,0.258064]
[1743982313359,0.270946,77506.0,77505.0,0.004]
[1743982313759,0.27097,77499.0,77498.0,0.01202128]
[1743982314022,0.27097,77499.0,77493.0,0.22348]
[1743982314023,0.258084,77494.0,77493.0,0.22348]
[1743982314218,0.258084,77494.0,77493.0,0.37904864]
[1743982314424,0.012902,77506.0,77494.0,0.012904]
[1743982314645,0.4156,77512.0,77495.0,0.1293887]
[1743982314646,0.258077,77496.0,77495.0,0.1293887]
[1743982314866,0.271001,77490.0,77489.0,0.03831937]
[1743982315055,0.012905,77486.0,77485.0,2.8e-07]
[1743982315299,0.2711,77462.0,77461.0,4.8e-07]
[1743982315502,0.271106,77460.0,77459.0,4.8e-07]
[1743982315834,0.012911,77452.0,77451.0,8.8e-07]
[1743982316041,1.02932426,77452.0,77451.0,8.8e-07]
[1743982316233,1.02932426,77452.0,77433.0,8e-08]
[1743982316234,0.012914,77434.0,77433.0,8e-08]
[1743982316434,0.77110326,77434.0,77433.0,8e-08]
[1743982316641,0.012915,77429.0,77428.0,8e-08]
[1743982316845,0.611237,77423.0,77422.0,1.4e-07]
[1743982317075,0.271279,77411.0,77410.0,0.0003342]
[1743982317414,0.686879,77411.0,77410.0,0.0003342]
[1743982317616,0.4156,77411.0,77410.0,0.0003342]
[1743982317818,0.258321,77423.0,77415.0,0.012917]
[1743982317999,0.4156,77428.0,77424.0,0.258317]
[1743982318204,0.012914,77435.0,77424.0,0.1293887]
[1743982318419,0.00258926,77434.0,77425.0,0.1293887]
[1743982318617,0.4156,77442.0,77433.0,0.012914]
[1743982318769,0.012911,77449.0,77436.0,0.012913]
[1743982318971,0.258268,77439.0,77437.0,0.39572863]
[1743982319172,0.4156,77447.0,77437.0,0.39572863]
[1743982319360,0.258265,77440.0,77437.0,0.17228863]
[1743982319581,0.258244,77446.0,77440.0,0.271175]
[1743982319847,0.258247,77445.0,77441.0,0.1293887]
[1743982320056,0.258247,77445.0,77442.0,0.02300975]
[1743982320246,0.012913,77439.0,77438.0,0.2234]
[1743982320485,0.012916,77420.0,77409.0,0.00965904]
[1743982320766,0.012916,77420.0,77404.0,0.0495342]
[1743982320767,0.258356,77413.0,77411.0,0.1293887]
[1743982320994,0.012917,77412.0,77411.0,0.1293887]
[1743982321214,0.012917,77412.0,77410.0,0.2237342]
[1743982321215,0.271279,77411.0,77410.0,0.22418657]
[1743982321442,0.258357,77414.0,77410.0,0.22418657]
[1743982321666,0.258361,77411.0,77410.0,0.22418657]
[1743982321895,0.258357,77414.0,77410.0,0.02707058]
[1743982322118,0.4156,77416.0,77410.0,0.02707058]
[1743982322119,0.4156,77416.0,77411.0,0.1293887]
[1743982322359,0.4156,77416.0,77415.0,0.012917]
[1743982322590,0.4156,77416.0,77415.0,0.18062507]
[1743982322836,0.4156,77444.0,77433.0,0.258284]
[1743982323065,0.58535493,77460.0,77426.0,0.012915]
[1743982323066,0.4156,77459.0,77443.0,0.012912]
[1743982323277,0.01291,77457.0,77444.0,0.1293887]
[1743982323510,0.258241,77447.0,77444.0,0.1293887]
[1743982323719,0.012909,77461.0,77445.0,0.2378484]
[1743982323962,0.258274,77437.0,77434.0,0.22332]
[1743982324178,0.258274,77437.0,77433.0,0.006]
[1743982324179,0.271198,77434.0,77433.0,0.006]
[1743982324417,0.258287,77433.0,77420.0,0.22332]
[1743982324613,0.258276,77437.0,77433.0,0.00045237]
[1743982324802,0.352912,77445.0,77433.0,0.00045237]
[1743982324803,0.258284,77434.0,77433.0,0.00045237]
[1743982325241,0.271198,77434.0,77433.0,0.00045237]
[1743982325447,0.258277,77437.0,77433.0,0.12984107]
[1743982325572,0.25794178,77434.0,77433.0,0.12984107]
[1743982325777,0.258226,77452.0,77443.0,0.012912]
[1743982325998,0.258246,77446.0,77444.0,0.1293887]
[1743982326613,0.258233,77450.0,77444.0,0.1293887]
[1743982326814,0.4,77660.0,77454.0,0.01291]
[1743982326815,0.4156,77458.0,77454.0,0.01291]
[1743982327018,0.4156,77488.0,77472.0,0.012907]
[1743982327213,0.258147,77476.0,77473.0,0.1293887]
[1743982327416,0.012908,77470.0,77469.0,0.22328]
[1743982327746,0.012908,77470.0,77453.0,0.22328]
[1743982327747,0.271121,77456.0,77453.0,0.22328]
[1743982327949,0.271121,77456.0,77445.0,0.07422205]
[1743982327950,0.271156,77446.0,77445.0,0.07422205]
[1743982328089,0.271156,77446.0,77445.0,0.14135087]
[1743982328291,0.271156,77446.0,77445.0,0.01241454]
[1743982328730,0.258241,77447.0,77445.0,0.00045237]
[1743982329183,0.258241,77447.0,77445.0,0.00645237]
[1743982329390,0.01550126,77446.0,77445.0,0.00045237]
[1743982329609,0.77110126,77446.0,77445.0,0.00645237]
[1743982329851,0.768512,77446.0,77445.0,0.00645237]
[1743982330058,0.4156,77446.0,77445.0,0.00045237]
[1743982330537,0.428512,77446.0,77445.0,0.00045237]
[1743982330981,0.768512,77446.0,77445.0,0.00645237]
[1743982331190,0.768512,77446.0,77445.0,3.7e-07]
[1743982331191,0.8979007,77446.0,77445.0,3.7e-07]
[1743982331427,0.91744155,77446.0,77445.0,3.7e-07]
[1743982331910,0.91744155,77446.0,77413.0,0.02393822]
[1743982331911,0.258351,77414.0,77413.0,0.02393822]
[1743982332158,0.271279,77411.0,77385.0,0.03831937]
[1743982332433,0.2713,77405.0,77404.0,4e-07]
[1743982332630,0.2713,77405.0,77380.0,0.0001671]
[1743982332631,0.61131,77402.0,77401.0,4e-07]
[1743982332837,1.19583955,77402.0,77401.0,4e-07]
[1743982333045,0.27077744,77381.0,77380.0,1e-07]
[1743982333482,0.61077744,77381.0,77380.0,1e-07]
[1743982333668,0.598461,77381.0,77380.0,0.00013579]
[1743982333908,0.611384,77381.0,77380.0,0.00013579]
[1743982334034,0.271384,77381.0,77380.0,0.00013579]
[1743982334228,0.258448,77385.0,77380.0,0.00013579]
[1743982334456,0.012921,77393.0,77380.0,0.00013579]
[1743982334457,0.25841,77397.0,77384.0,0.258448]
[1743982334655,0.271367,77386.0,77385.0,0.03881397]
[1743982334853,0.258458,77382.0,77381.0,0.1293887]
[1743982335836,0.001,77385.0,77382.0,0.258458]
[1743982336055,0.001,77385.0,77384.0,0.271373]
[1743982336258,0.001,77385.0,77380.0,0.00013579]
[1743982336259,0.258451,77384.0,77380.0,0.00013579]
[1743982336558,0.271397,77377.0,77376.0,0.20346299]
[1743982336759,0.25849,77373.0,77364.0,0.258517]
[1743982336976,0.258481,77375.0,77368.0,0.1293887]
[1743982337181,0.258488,77373.0,77368.0,0.1293887]
[1743982337396,0.258497,77371.0,77368.0,0.1293887]
[1743982337597,0.271421,77371.0,77369.0,0.03911711]
[1743982337840,0.271421,77371.0,77370.0,0.1293887]
[1743982337991,0.012923,77376.0,77370.0,0.1293887]
[1743982337992,0.258464,77381.0,77370.0,0.1423127]
[1743982338172,0.674025,77392.0,77385.0,0.258448]
[1743982338380,0.4156,77392.0,77387.0,0.258441]
[1743982338599,0.4156,77392.0,77389.0,0.258434]
[1743982338818,0.258398,77400.0,77395.0,0.01292]
[1743982339028,0.258371,77408.0,77399.0,0.01292]
[1743982339224,0.258387,77403.0,77400.0,0.03817268]
[1743982339385,0.258387,77403.0,77375.0,0.00982757]
[1743982339386,0.01292,77394.0,77380.0,0.236043]
[1743982339581,0.258401,77399.0,77390.0,0.258429]
[1743982339812,0.258401,77399.0,77391.0,0.1293887]
[1743982339813,0.258423,77393.0,77391.0,0.1293887]
[1743982340035,0.258427,77391.0,77389.0,0.006]
[1743982340178,0.01551026,77390.0,77389.0,0.006]
[1743982340576,0.012921,77390.0,77389.0,0.006]
[1743982341207,0.012921,77388.0,77380.0,0.0001361]
[1743982341416,0.258455,77383.0,77381.0,0.18143851]
[1743982342102,0.012922,77382.0,77381.0,0.18143851]
[1743982342362,0.271384,77381.0,77380.0,0.0001361]
[1743982342656,0.271384,77381.0,77380.0,0.0061361]
[1743982342893,0.258455,77383.0,77380.0,0.0061361]
[1743982343103,0.258417,77395.0,77385.0,0.27137]
[1743982343280,0.4156,77399.0,77380.0,0.0001361]
[1743982343281,0.258461,77381.0,77380.0,0.0001361]
[1743982343645,0.4156,77388.0,77387.0,0.258441]
[1743982344011,0.258401,77400.0,77392.0,0.012921]
[1743982344218,0.01292,77394.0,77387.0,0.1293887]
[1743982344372,0.01292,77394.0,77353.0,0.517104]
[1743982344373,0.271373,77384.0,77383.0,0.02394322]
[1743982344716,0.258458,77382.0,77381.0,0.006]
[1743982344947,0.258424,77392.0,77384.0,0.27137]
[1743982345168,0.25841,77397.0,77388.0,0.258438]
[1743982345440,0.012921,77393.0,77385.0,0.1293887]
[1743982345583,0.258384,77405.0,77388.0,0.1423097]
[1743982345786,0.271326,77398.0,77388.0,0.1423097]
[1743982346044,0.686955,77389.0,77388.0,0.16530534]
[1743982346250,0.686955,77389.0,77388.0,0.18243587]
[1743982346386,0.674034,77389.0,77388.0,0.18243587]
[1743982346587,0.4156,77389.0,77388.0,0.45379487]
[1743982346995,0.271293,77407.0,77400.0,0.271314]
[1743982346996,0.258381,77406.0,77400.0,0.271314]
[1743982347193,0.012919,77401.0,77389.0,0.012921]
[1743982347396,0.012919,77401.0,77390.0,0.1534489]
[1743982347606,0.258421,77393.0,77390.0,0.1534489]
[1743982347861,0.258421,77393.0,77391.0,0.02397857]
[1743982348054,0.258421,77393.0,77392.0,0.15336727]
[1743982348257,0.258397,77401.0,77392.0,0.16628827]
[1743982348456,0.258387,77403.0,77394.0,0.01292]
[1743982348660,0.258387,77403.0,77397.0,0.258404]
[1743982348878,0.258401,77399.0,77398.0,0.02397857]
[1743982349081,0.258387,77403.0,77398.0,0.02397857]
[1743982349238,0.258394,77401.0,77396.0,0.25841]
[1743982349456,0.4156,77419.0,77418.0,0.012916]
[1743982349655,0.4156,77429.0,77421.0,0.012916]
[1743982349841,0.4156,77429.0,77427.0,0.258304]
[1743982350040,0.012912,77442.0,77422.0,0.3877127]
[1743982350041,0.4156,77452.0,77438.0,0.012913]
[1743982350333,0.4156,77452.0,77439.0,0.1293887]
[1743982350334,0.012911,77449.0,77439.0,0.1293887]
[1743982350483,0.258241,77447.0,77440.0,0.01935351]
[1743982350682,0.012911,77450.0,77441.0,0.1293887]
[1743982350860,0.271169,77442.0,77441.0,0.1293887]
[1743982351241,0.271169,77442.0,77441.0,0.15336727]
[1743982351445,0.271169,77442.0,77441.0,0.02397857]
[1743982351644,0.271195,77435.0,77434.0,0.01197342]
[1743982351842,0.271195,77435.0,77430.0,0.02397857]
[1743982351843,0.258294,77431.0,77430.0,0.02397857]
[1743982352043,0.258294,77431.0,77425.0,0.22292]
[1743982352044,0.258307,77427.0,77426.0,0.02397857]
[1743982352247,0.271222,77427.0,77426.0,0.02397857]
[1743982352871,0.258307,77427.0,77425.0,0.22292]
[1743982353075,0.4156,77441.0,77428.0,0.012915]
[1743982353249,0.258274,77438.0,77432.0,0.012914]
[1743982353448,0.258287,77434.0,77431.0,0.03831937]
[1743982353678,0.41605237,77441.0,77435.0,0.012914]
[1743982353876,0.41605237,77441.0,77440.0,0.012913]
[1743982353877,0.00045237,77441.0,77440.0,0.012913]
[1743982354094,0.00045237,77441.0,77440.0,0.18320347]
[1743982354303,0.00045237,77441.0,77440.0,0.59999078]
[1743982354488,0.00045237,77441.0,77440.0,0.58306758]
[1743982354805,0.00045237,77441.0,77440.0,0.18275458]
[1743982355090,0.00045237,77441.0,77440.0,0.194728]
[1743982355288,0.00045237,77441.0,77440.0,0.206728]
[1743982356005,0.00045237,77441.0,77440.0,0.200728]
[1743982356246,0.00045237,77441.0,77440.0,0.462514]
[1743982356505,0.00045237,77441.0,77440.0,0.18875458]
[1743982356756,0.01336537,77441.0,77440.0,0.02997857]
[1743982356985,0.01595463,77441.0,77440.0,0.03597857]
[1743982357496,0.01595463,77441.0,77440.0,0.012]
[1743982357722,0.01595463,77441.0,77440.0,0.006]
[1743982358358,0.35595463,77441.0,77440.0,0.006]
[1743982358501,0.012914,77430.0,77429.0,0.02397857]
[1743982358737,0.271211,77430.0,77429.0,0.02467386]
[1743982358935,0.258297,77430.0,77429.0,0.02467386]
[1743982359369,0.258297,77430.0,77429.0,0.04866921]
[1743982359571,0.271211,77430.0,77429.0,0.02399535]
[1743982359755,0.258297,77430.0,77429.0,0.15338405]
[1743982360593,0.258297,77430.0,77429.0,0.15938405]
[1743982360821,0.258297,77430.0,77429.0,0.16538405]
[1743982361022,0.025,77468.0,77437.0,0.258274]
[1743982361177,0.012911,77449.0,77438.0,0.1293887]
[1743982361358,0.012911,77449.0,77438.0,0.02399535]
[1743982361359,0.012913,77439.0,77438.0,0.02399535]
[1743982361564,0.01550226,77439.0,77438.0,0.02399535]
[1743982361766,0.41605237,77441.0,77438.0,0.012913]
[1743982361991,0.258264,77440.0,77439.0,0.02710327]
[1743982362197,0.271208,77431.0,77430.0,0.01197342]
[1743982362770,0.258285,77435.0,77430.0,0.02399365]
[1743982362771,0.258292,77432.0,77430.0,0.02399365]
[1743982363085,0.01550326,77431.0,77430.0,0.02399365]
[1743982363492,0.77110326,77431.0,77430.0,6.5e-07]
[1743982363689,0.8979027,77431.0,77430.0,6.5e-07]
[1743982363939,0.012917,77415.0,77404.0,0.012919]
[1743982364120,0.258361,77411.0,77405.0,0.15542892]
[1743982364319,0.428517,77415.0,77405.0,0.15542892]
[1743982364320,0.258374,77407.0,77405.0,0.15542892]
[1743982364520,0.01250635,77406.0,77405.0,0.15542892]
[1743982364722,0.258364,77410.0,77405.0,0.15542892]
[1743982364723,0.258356,77413.0,77405.0,0.15542892]
[1743982364930,0.258374,77407.0,77405.0,0.16743308]
[1743982365260,0.258374,77407.0,77406.0,0.03899931]
[1743982365384,0.271292,77407.0,77405.0,0.01214026]
[1743982365585,0.012918,77406.0,77405.0,0.01214026]
[1743982365790,0.012918,77406.0,77405.0,0.01814026]
[1743982366189,0.258364,77410.0,77405.0,0.01814026]
[1743982366402,0.258374,77407.0,77405.0,0.01814026]
[1743982366618,0.34,77429.0,77406.0,0.02894563]
[1743982366818,0.012913,77441.0,77414.0,0.271268]
[1743982367079,0.25834,77418.0,77414.0,0.1293887]
[1743982367231,0.258323,77423.0,77414.0,0.15430986]
[1743982367431,0.258323,77423.0,77417.0,0.012917]
[1743982367648,0.516429,77455.0,77421.0,0.012916]
[1743982367859,0.258294,77431.0,77424.0,0.012915]
[1743982368229,0.4156,77440.0,77425.0,0.15430786]
[1743982368378,0.4156,77452.0,77443.0,0.012912]
[1743982368596,0.258246,77446.0,77444.0,0.1293887]
[1743982368751,0.258246,77446.0,77444.0,0.15833433]
[1743982368946,0.25824,77448.0,77445.0,0.01200416]
[1743982369151,0.258231,77450.0,77446.0,0.1293887]
[1743982369559,0.00045237,77450.0,77446.0,0.1423007]
[1743982369757,0.258238,77448.0,77446.0,0.1293887]
[1743982370145,0.271149,77448.0,77447.0,0.01200416]
[1743982370347,0.611149,77448.0,77447.0,0.01200416]
[1743982371330,0.611149,77448.0,77427.0,0.05123437]
[1743982371331,0.258299,77430.0,77427.0,0.03831937]
[1743982371528,0.258299,77430.0,77428.0,0.1293887]
[1743982372262,0.25828,77436.0,77428.0,0.1293887]
[1743982372467,0.25828,77436.0,77429.0,0.01202576]
[1743982372468,0.258284,77434.0,77429.0,0.01202576]
[1743982372631,0.258288,77433.0,77430.0,0.1293887]
[1743982372821,0.271208,77431.0,77430.0,0.1293887]
[1743982373261,0.00045237,77450.0,77435.0,0.012914]
[1743982373391,0.258248,77445.0,77438.0,0.012913]
[1743982373591,0.00045237,77450.0,77438.0,0.4005727]
[1743982374021,0.00045237,77450.0,77438.0,0.4956727]
[1743982374223,0.00045237,77450.0,77449.0,0.271145]
[1743982374443,0.00045237,77450.0,77449.0,0.66125307]
[1743982374643,0.00045237,77450.0,77449.0,0.68452028]
[1743982375044,0.0003344,77453.0,77452.0,0.271135]
[1743982375249,0.0003344,77453.0,77452.0,0.75506455]
[1743982375629,0.0003344,77453.0,77452.0,0.77910556]
[1743982375828,0.0003344,77453.0,77452.0,0.79113132]
[1743982376103,0.0003344,77453.0,77452.0,0.83377379]
[1743982376225,0.0003344,77453.0,77452.0,0.47923294]
[1743982376438,0.0003344,77453.0,77452.0,0.48523294]
[1743982376638,0.0003344,77453.0,77452.0,0.49123294]
[1743982377100,0.0003344,77453.0,77452.0,0.22009794]
[1743982377533,0.0003344,77453.0,77452.0,0.44241794]
[1743982377745,0.0003344,77453.0,77452.0,0.45532894]
[1743982377940,0.0003344,77453.0,77452.0,0.23300894]
[1743982378238,0.0003344,77453.0,77452.0,0.44928894]
[1743982378444,0.0003344,77453.0,77452.0,0.45528894]
[1743982378841,0.0003344,77453.0,77452.0,0.44237794]
[1743982378982,0.0003344,77453.0,77452.0,0.43637794]
[1743982379394,0.0003344,77453.0,77452.0,0.44237794]
[1743982379601,0.0003344,77453.0,77452.0,0.70060194]
[1743982379814,0.0003344,77453.0,77452.0,0.71351294]
[1743982380038,0.0003344,77453.0,77452.0,0.44237794]
[1743982380259,0.0003344,77453.0,77452.0,0.71351294]
[1743982380461,0.0003344,77453.0,77452.0,0.49123294]
[1743982380704,0.0003344,77453.0,77452.0,0.71343294]